fUSD/lending_fUSD_20241221
["ID","MTS","AMOUNT","RATE_DAILY","PERIOD"]
[346202354,1734773487382,-500.0,0.00020547,2]
[346202355,1734773487391,-552.37,0.00020547,2]
[346202356,1734773487402,-1143.79,0.00020547,2]
[346202357,1734773487411,-500.0,0.00020547,2]
[346202358,1734773487421,-500.0,0.00020547,2]
[346202359,1734773487430,-500.0,0.00020547,2]
[346202360,1734773487439,-1053.96,0.00020547,2]
[346202361,1734773487449,-500.0,0.00020547,2]
[346202362,1734773487458,-500.0,0.00020547,2]
[346202363,1734773487467,-1376.42,0.00020547,2]
[346202364,1734773487476,-500.0,0.00020547,2]
[346202365,1734773487486,-500.0,0.00020547,2]
[346202366,1734773487496,-500.0,0.00020547,2]
[346202367,1734773487505,-500.0,0.00020547,2]
[346202368,1734773487515,-599.42,0.00020547,2]
[346202369,1734773487528,-500.0,0.00020547,2]
[346202370,1734773487537,-500.0,0.00020547,2]
[346202371,1734773487546,-781.07,0.00020547,2]
[346202372,1734773487555,-500.0,0.00020547,2]
[346202373,1734773487565,-748.53,0.00020547,2]
[346202374,1734773487574,-429.71087013,0.00020547,2]
[346202375,1734773487583,-500.0,0.00020547,2]
[346202376,1734773487592,-500.0,0.00020547,2]
[346202377,1734773487606,-755.41,0.00020547,2]
[346202378,1734773487615,-500.0,0.00020547,2]
[346202379,1734773487624,-559.95,0.00020547,2]
[346202380,1734773487634,-500.0,0.00020547,2]
[346202381,1734773487643,-1490.75,0.00020547,2]
[346202382,1734773487652,-500.0,0.00020547,2]
[346202383,1734773487661,-500.0,0.00020547,2]
[346202384,1734773487670,-500.0,0.00020547,2]
[346202385,1734773487679,-500.0,0.00020547,2]
[346202386,1734773487688,-500.0,0.00020547,2]
[346202387,1734773487698,-500.0,0.00020547,2]
[346202388,1734773487707,-500.0,0.00020547,2]
[346202389,1734773487716,-500.0,0.00020547,2]
[346202390,1734773487725,-598.33240464,0.00020547,2]
[346202391,1734773487734,-687.98,0.00020547,2]
[346202392,1734773487743,-656.36,0.00020547,2]
[346202393,1734773487752,-500.0,0.00020547,2]
[346202394,1734773487761,-500.0,0.00020547,2]
[346202395,1734773487770,-668.09,0.00020547,2]
[346202396,1734773487783,-500.0,0.00020547,2]
[346202397,1734773487793,-1005.06,0.00020547,2]
[346202398,1734773487802,-500.0,0.00020547,2]
[346202399,1734773487811,-500.0,0.00020547,2]
[346202400,1734773487821,-500.0,0.00020547,2]
[346202401,1734773487830,-853.8,0.00020547,2]
[346202402,1734773487839,-500.0,0.00020547,2]
[346202403,1734773487848,-270.64657507,0.00020547,2]
[346202404,1734773487858,-806.29,0.00020547,2]
[346202405,1734773487867,-1139.76,0.00020547,2]
[346202406,1734773487876,-543.54,0.00020547,2]
[346202407,1734773487886,-500.0,0.00020547,2]
[346202408,1734773487895,-602.77,0.00020547,2]
[346202409,1734773487905,-500.0,0.00020547,2]
[346202410,1734773487914,-845.78,0.00020547,2]
[346202411,1734773487923,-500.0,0.00020547,2]
[346202412,1734773487932,-1302.53,0.00020547,2]
[346202413,1734773487941,-500.0,0.00020547,2]
[346202414,1734773487951,-1369.09,0.00020547,2]
[346202415,1734773487960,-500.0,0.00020547,2]
[346202416,1734773487969,-500.0,0.00020547,2]
[346202417,1734773487979,-962.8,0.00020547,2]
[346202418,1734773487988,-809.27,0.00020547,2]
[346202419,1734773487997,-500.0,0.00020547,2]
[346202420,1734773488007,-500.0,0.00020547,2]
[346202421,1734773488016,-1375.81,0.00020547,2]
[346202422,1734773488028,-500.0,0.00020547,2]
[346202423,1734773488038,-541.05,0.00020547,2]
[346202424,1734773488047,-890.86,0.00020547,2]
[346202425,1734773488056,-500.0,0.00020547,2]
[346202426,1734773488065,-500.0,0.00020547,2]
[346202427,1734773488075,-500.0,0.00020547,2]
[346202428,1734773488084,-500.0,0.00020547,2]
[346202429,1734773488093,-500.0,0.00020547,2]
[346202430,1734773488103,-962.15,0.00020547,2]
[346202431,1734773488112,-500.0,0.00020547,2]
[346202432,1734773488121,-500.0,0.00020547,2]
[346202433,1734773488130,-500.0,0.00020547,2]
[346202434,1734773488139,-1179.31,0.00020547,2]
[346202435,1734773488149,-1057.42,0.00020547,2]
[346202436,1734773488158,-500.0,0.00020547,2]
[346202437,1734773488167,-808.61,0.00020547,2]
[346202438,1734773488176,-1000.37,0.00020547,2]
[346202439,1734773488185,-500.0,0.00020547,2]
[346202440,1734773488194,-1022.01,0.00020547,2]
[346202441,1734773488203,-500.0,0.00020547,2]
[346202442,1734773488212,-1003.14,0.00020547,2]
[346202443,1734773488221,-768.28,0.00020547,2]
[346202444,1734773488230,-500.0,0.00020547,2]
[346202445,1734773488241,-500.0,0.00020547,2]
[346202446,1734773488250,-500.0,0.00020547,2]
[346202447,1734773488259,-500.0,0.00020547,2]
[346202448,1734773488268,-500.0,0.00020547,2]
[346202449,1734773488280,-603.92,0.00020547,2]
[346202450,1734773488289,-655.6,0.00020547,2]
[346202451,1734773488299,-910.93,0.00020547,2]
[346202452,1734773488309,-693.18,0.00020547,2]
[346202453,1734773488318,-500.0,0.00020547,2]
[346202454,1734773488327,-1405.78,0.00020547,2]
[346202455,1734773488337,-500.0,0.00020547,2]
[346202456,1734773488348,-1661.19,0.00020547,2]
[346202457,1734773488357,-569.58,0.00020547,2]
[346202458,1734773488368,-500.0,0.00020547,2]
[346202459,1734773488378,-500.0,0.00020547,2]
[346202460,1734773488387,-625.66,0.00020547,2]
[346202461,1734773488398,-500.0,0.00020547,2]
[346202462,1734773488407,-500.0,0.00020547,2]
[346202463,1734773488417,-500.0,0.00020547,2]
[346202464,1734773488427,-500.0,0.00020547,2]
[346202465,1734773488437,-815.77,0.00020547,2]
[346202466,1734773488447,-1379.55,0.00020547,2]
[346202467,1734773488456,-888.28,0.00020547,2]
[346202468,1734773488466,-7587.43,0.00020547,2]
[346202469,1734773488477,-500.0,0.00020547,2]
[346202470,1734773488487,-584.89,0.00020547,2]
[346202471,1734773488495,-500.0,0.00020547,2]
[346202472,1734773488505,-500.0,0.00020547,2]
[346202473,1734773488515,-500.0,0.00020547,2]
[346202474,1734773488528,-1621.1,0.00020547,2]
[346202475,1734773488537,-512.23416159,0.00020547,2]
[346202476,1734773488547,-635.11,0.00020547,2]
[346202477,1734773488556,-519.97,0.00020547,2]
[346202478,1734773488566,-500.0,0.00020547,2]
[346202479,1734773488575,-594.39,0.00020547,2]
[346202480,1734773488585,-981.0,0.00020547,2]
[346202481,1734773488594,-500.0,0.00020547,2]
[346202482,1734773488604,-540.89,0.00020547,2]
[346202483,1734773488614,-500.0,0.00020547,2]
[346202484,1734773488623,-649.72,0.00020547,2]
[346202485,1734773488633,-500.0,0.00020547,2]
[346202486,1734773488643,-500.0,0.00020547,2]
[346202487,1734773488653,-1791.49,0.00020547,2]
[346202488,1734773488662,-632.59,0.00020547,2]
[346202489,1734773488671,-500.0,0.00020547,2]
[346202490,1734773488681,-436.36178799,0.00020547,2]
[346202491,1734773488690,-1983.68,0.00020547,2]
[346202492,1734773488700,-500.0,0.00020547,2]
[346202493,1734773488710,-500.0,0.00020547,2]
[346202494,1734773488720,-500.0,0.00020547,2]
[346202495,1734773488730,-500.0,0.00020547,2]
[346202496,1734773488739,-500.0,0.00020547,2]
[346202497,1734773488749,-538.80902199,0.00020547,2]
[346202498,1734773488759,-505.78465805,0.00020547,2]
[346202499,1734773488768,-500.0,0.00020547,2]
[346202500,1734773488782,-3485.33,0.00020547,2]
[346202501,1734773488792,-500.0,0.00020547,2]
[346202502,1734773488802,-500.0,0.00020547,2]
[346202503,1734773488811,-500.0,0.00020547,2]
[346202504,1734773488821,-2588.55,0.00020547,2]
[346202505,1734773488830,-500.0,0.00020547,2]
[346202506,1734773488840,-1085.44,0.00020547,2]
[346202507,1734773488850,-500.0,0.00020547,2]
[346202508,1734773489059,-885.13,0.00020547,2]
[346202509,1734773489071,-557.35,0.00020547,2]
[346202510,1734773489080,-1108.63,0.00020547,2]
[346202511,1734773489090,-1207.07,0.00020547,2]
[346202512,1734773489100,-500.0,0.00020547,2]
[346202513,1734773489109,-500.0,0.00020547,2]
[346202514,1734773489119,-4669.83,0.00020547,2]
[346202515,1734773489128,-500.0,0.00020547,2]
[346202516,1734773489138,-3265.96,0.00020547,2]
[346202517,1734773489148,-1587.64,0.00020547,2]
[346202518,1734773489157,-877.61,0.00020547,2]
[346202519,1734773489167,-828.22,0.00020547,2]
[346202520,1734773489176,-500.0,0.00020547,2]
[346202521,1734773489185,-500.0,0.00020547,2]
[346202522,1734773489194,-4399.07,0.00020547,2]
[346202523,1734773489203,-522.30053318,0.00020547,2]
[346202524,1734773489213,-741.63,0.00020547,2]
[346202525,1734773489222,-500.0,0.00020547,2]
[346202526,1734773489231,-828.21,0.00020547,2]
[346202527,1734773489243,-570.11,0.00020547,2]
[346202528,1734773489253,-500.0,0.00020547,2]
[346202529,1734773489262,-500.0,0.00020547,2]
[346202530,1734773489272,-500.0,0.00020547,2]
[346202531,1734773489284,-500.0,0.00020547,2]
[346202532,1734773489293,-541.73,0.00020547,2]
[346202533,1734773489303,-500.0,0.00020547,2]
[346202534,1734773489315,-500.0,0.00020547,2]
[346202535,1734773489324,-1087.72,0.00020547,2]
[346202536,1734773489334,-500.0,0.00020547,2]
[346202537,1734773489343,-932.89,0.00020547,2]
[346202538,1734773489353,-1129.8,0.00020547,2]
[346202539,1734773489363,-500.0,0.00020547,2]
[346202540,1734773489373,-573.7,0.00020547,2]
[346202541,1734773489383,-1331.05,0.00020547,2]
[346202542,1734773489393,-500.0,0.00020547,2]
[346202543,1734773489403,-1360.88,0.00020547,2]
[346202544,1734773489412,-1044.55,0.00020547,2]
[346202545,1734773489422,-2053.76,0.00020547,2]
[346202546,1734773489432,-500.0,0.00020547,2]
[346202547,1734773489443,-1900.92,0.00020547,2]
[346202548,1734773489452,-1066.83,0.00020547,2]
[346202549,1734773489462,-500.0,0.00020547,2]
[346202550,1734773489471,-500.0,0.00020547,2]
[346202551,1734773489482,-500.0,0.00020547,2]
[346202552,1734773489491,-2895.88,0.00020547,2]
[346202553,1734773489502,-500.0,0.00020547,2]
[346202554,1734773489511,-2461.23,0.00020547,2]
[346202555,1734773489521,-632.84,0.00020547,2]
[346202556,1734773489534,-667.86,0.00020547,2]
[346202557,1734773489543,-2694.25,0.00020547,2]
[346202558,1734773489552,-500.0,0.00020547,2]
[346202559,1734773489562,-1168.89,0.00020547,2]
[346202560,1734773489572,-710.98,0.00020547,2]
[346202561,1734773489581,-4557.64,0.00020547,2]
[346202562,1734773489591,-500.0,0.00020547,2]
[346202563,1734773489601,-729.31,0.00020547,2]
[346202564,1734773489611,-1694.89,0.00020547,2]
[346202565,1734773489620,-682.43,0.00020547,2]
[346202566,1734773489629,-1187.51,0.00020547,2]
[346202567,1734773489638,-1237.16,0.00020547,2]
[346202568,1734773489648,-708.66,0.00020547,2]
[346202569,1734773489658,-545.43,0.00020547,2]
[346202570,1734773489669,-1021.5,0.00020547,2]
[346202571,1734773489680,-765.55,0.00020547,2]
[346202572,1734773489691,-500.0,0.00020547,2]
[346202573,1734773489701,-500.0,0.00020547,2]
[346202574,1734773489711,-621.25,0.00020547,2]
[346202575,1734773489720,-693.27,0.00020547,2]
[346202576,1734773489729,-500.0,0.00020547,2]
[346202577,1734773489741,-2780.15,0.00020547,2]
[346202578,1734773489752,-500.0,0.00020547,2]
[346202579,1734773489762,-784.83,0.00020547,2]
[346202580,1734773489772,-500.0,0.00020547,2]
[346202581,1734773489785,-3200.14,0.00020547,2]
[346202582,1734773489795,-1366.98,0.00020547,2]
[346202583,1734773489804,-500.0,0.00020547,2]
[346202584,1734773489813,-3460.69,0.00020547,2]
[346202585,1734773489823,-500.0,0.00020547,2]
[346202586,1734773489833,-500.0,0.00020547,2]
[346202587,1734773489842,-2823.93,0.00020547,2]
[346202588,1734773489852,-1842.46,0.00020547,2]
[346202589,1734773489862,-790.83,0.00020547,2]
[346202590,1734773489871,-1119.96,0.00020547,2]
[346202591,1734773489881,-981.15,0.00020547,2]
[346202592,1734773489891,-1567.9,0.00020547,2]
[346202593,1734773489901,-871.54,0.00020547,2]
[346202594,1734773489910,-500.0,0.00020547,2]
[346202595,1734773489920,-1851.68,0.00020547,2]
[346202596,1734773489929,-1859.69,0.00020547,2]
[346202597,1734773489939,-1465.88,0.00020547,2]
[346202598,1734773489948,-794.89,0.00020547,2]
[346202599,1734773489958,-1367.48,0.00020547,2]
[346202600,1734773489969,-541.28,0.00020547,2]
[346202601,1734773489978,-3584.85,0.00020547,2]
[346202602,1734773489987,-500.0,0.00020547,2]
[346202603,1734773489996,-500.0,0.00020547,2]
[346202604,1734773490005,-500.0,0.00020547,2]
[346202605,1734773490014,-500.0,0.00020547,2]
[346202606,1734773490023,-2813.95,0.00020547,2]
[346202607,1734773490037,-506.82,0.00020547,2]
[346202608,1734773490047,-572.38,0.00020547,2]
[346202609,1734773490056,-500.0,0.00020547,2]
[346202610,1734773490065,-707.8,0.00020547,2]
[346202611,1734773490074,-3748.8,0.00020547,2]
[346202612,1734773490085,-625.29,0.00020547,2]
[346202613,1734773490095,-500.0,0.00020547,2]
[346202614,1734773490105,-900.78,0.00020547,2]
[346202615,1734773490115,-1109.38,0.00020547,2]
[346202616,1734773490124,-500.0,0.00020547,2]
[346202617,1734773490134,-500.0,0.00020547,2]
[346202618,1734773490143,-1097.85,0.00020547,2]
[346202619,1734773490152,-2789.81,0.00020547,2]
[346202620,1734773490162,-756.9,0.00020547,2]
[346202621,1734773490171,-500.0,0.00020547,2]
[346202622,1734773490180,-1857.4,0.00020547,2]
[346202623,1734773490189,-930.55,0.00020547,2]
[346202624,1734773490199,-500.0,0.00020547,2]
[346202625,1734773490208,-500.0,0.00020547,2]
[346202626,1734773490217,-500.0,0.00020547,2]
[346202627,1734773490227,-909.54,0.00020547,2]
[346202628,1734773490238,-503.55470033,0.00020547,2]
[346202629,1734773490247,-1694.4,0.00020547,2]
[346202630,1734773490257,-500.0,0.00020547,2]
[346202631,1734773490266,-2292.97,0.00020547,2]
[346202632,1734773490275,-500.0,0.00020547,2]
[346202633,1734773490287,-500.0,0.00020547,2]
[346202634,1734773490297,-911.05,0.00020547,2]
[346202635,1734773490306,-724.3,0.00020547,2]
[346202636,1734773490316,-500.0,0.00020547,2]
[346202637,1734773490325,-2330.29,0.00020547,2]
[346202638,1734773490334,-3781.43,0.00020547,2]
[346202639,1734773490343,-2095.36,0.00020547,2]
[346202640,1734773490352,-1261.37,0.00020547,2]
[346202641,1734773490361,-500.0,0.00020547,2]
[346202642,1734773490372,-500.0,0.00020547,2]
[346202643,1734773490381,-2082.75,0.00020547,2]
[346202644,1734773490391,-991.07,0.00020547,2]
[346202645,1734773490400,-500.0,0.00020547,2]
[346202646,1734773490409,-500.0,0.00020547,2]
[346202647,1734773490419,-500.0,0.00020547,2]
[346202648,1734773490427,-9686.77,0.00020547,2]
[346202649,1734773490436,-1882.98,0.00020547,2]
[346202650,1734773490445,-6034.06,0.00020547,2]
[346202651,1734773490455,-500.0,0.00020547,2]
[346202652,1734773490464,-958.49,0.00020547,2]
[346202653,1734773490473,-4702.84,0.00020547,2]
[346202654,1734773490482,-500.0,0.00020547,2]
[346202655,1734773490492,-2607.23,0.00020547,2]
[346202656,1734773490501,-500.0,0.00020547,2]
[346202657,1734773490510,-500.0,0.00020547,2]
[346202658,1734773490518,-1501.37,0.00020547,2]
[346202659,1734773490529,-500.0,0.00020547,2]
[346202660,1734773490538,-500.0,0.00020547,2]
[346202661,1734773490547,-1764.07,0.00020547,2]
[346202662,1734773490556,-5371.31,0.00020547,2]
[346202663,1734773490565,-1482.95,0.00020547,2]
[346202664,1734773490574,-502.56140001,0.00020547,2]
[346202665,1734773490583,-1579.5,0.00020547,2]
[346202666,1734773490592,-2844.23,0.00020547,2]
[346202667,1734773490601,-849.58,0.00020547,2]
[346202668,1734773490610,-500.0,0.00020547,2]
[346202669,1734773490619,-500.0,0.00020547,2]
[346202670,1734773490628,-764.29,0.00020547,2]
[346202671,1734773490638,-500.0,0.00020547,2]
[346202672,1734773490647,-6231.42,0.00020547,2]
[346202673,1734773490656,-500.0,0.00020547,2]
[346202674,1734773490665,-500.0,0.00020547,2]
[346202675,1734773490674,-2094.42,0.00020547,2]
[346202676,1734773490683,-500.0,0.00020547,2]
[346202677,1734773490691,-503.82038516,0.00020547,2]
[346202678,1734773490700,-1010.69,0.00020547,2]
[346202679,1734773490709,-751.14,0.00020547,2]
[346202680,1734773490719,-3462.44,0.00020547,2]
[346202681,1734773490728,-3160.9,0.00020547,2]
[346202682,1734773490737,-502.50613483,0.00020547,2]
[346202683,1734773490746,-24645.27,0.00020547,2]
[346202684,1734773490756,-8247.4,0.00020547,2]
[346202685,1734773490765,-2367.12,0.00020547,2]
[346202686,1734773490774,-500.0,0.00020547,2]
[346202687,1734773490786,-6261.44,0.00020547,2]
[346202688,1734773490795,-1656.5,0.00020547,2]
[346202689,1734773490805,-781.22,0.00020547,2]
[346202690,1734773490814,-3393.2,0.00020547,2]
[346202691,1734773490823,-500.0,0.00020547,2]
[346202692,1734773490833,-500.0,0.00020547,2]
[346202693,1734773490843,-1460.86,0.00020547,2]
[346202694,1734773490852,-500.0,0.00020547,2]
[346202695,1734773490861,-1877.49,0.00020547,2]
[346202696,1734773490870,-2708.81,0.00020547,2]
[346202697,1734773490879,-1040.82,0.00020547,2]
[346202698,1734773490888,-1267.07,0.00020547,2]
[346202699,1734773490898,-500.0,0.00020547,2]
[346202700,1734773490907,-500.0,0.00020547,2]
[346202701,1734773490916,-767.73,0.00020547,2]
[346202702,1734773490926,-500.0,0.00020547,2]
[346202703,1734773490935,-562.79,0.00020547,2]
[346202704,1734773490944,-8117.57,0.00020547,2]
[346202705,1734773490954,-500.0,0.00020547,2]
[346202706,1734773490963,-1296.7,0.00020547,2]
[346202707,1734773490972,-3164.99,0.00020547,2]
[346202708,1734773490982,-2412.38,0.00020547,2]
[346202709,1734773490992,-500.0,0.00020547,2]
[346202710,1734773491001,-704.84,0.00020547,2]
[346202711,1734773491010,-589.2,0.00020547,2]
[346202712,1734773491019,-2899.73,0.00020547,2]
[346202713,1734773491030,-862.32,0.00020547,2]
[346202714,1734773491039,-500.0,0.00020547,2]
[346202715,1734773491048,-500.0,0.00020547,2]
[346202716,1734773491058,-500.0,0.00020547,2]
[346202717,1734773491067,-857.89,0.00020547,2]
[346202718,1734773491077,-812.4,0.00020547,2]
[346202719,1734773491086,-500.0,0.00020547,2]
[346202720,1734773491097,-634.56,0.00020547,2]
[346202721,1734773491107,-500.0,0.00020547,2]
[346202722,1734773491117,-768.33,0.00020547,2]
[346202723,1734773491127,-690.88,0.00020547,2]
[346202724,1734773491137,-1896.12,0.00020547,2]
[346202725,1734773491148,-1858.22,0.00020547,2]
[346202726,1734773491158,-500.0,0.00020547,2]
[346202727,1734773491168,-884.99,0.00020547,2]
[346202728,1734773491176,-500.0,0.00020547,2]
[346202729,1734773491186,-500.0,0.00020547,2]
[346202730,1734773491195,-500.0,0.00020547,2]
[346202731,1734773491205,-1376.83,0.00020547,2]
[346202732,1734773491214,-500.0,0.00020547,2]
[346202733,1734773491223,-500.0,0.00020547,2]
[346202734,1734773491233,-500.0,0.00020547,2]
[346202735,1734773491244,-573.61,0.00020547,2]
[346202736,1734773491253,-500.0,0.00020547,2]
[346202737,1734773491263,-1509.18,0.00020547,2]
[346202738,1734773491272,-500.0,0.00020547,2]
[346202739,1734773491285,-538.56,0.00020547,2]
[346202740,1734773491296,-6768.87,0.00020548,2]
[346202741,1734773491307,-150.0,0.00020552,4]
[346202742,1734773491319,-152.734543,0.0002058,3]
[346202743,1734773491329,-150.0,0.00020594,4]
[346202744,1734773491339,-2942.0,0.000206,2]
[346202745,1734773491348,-6570.30051282,0.00020609,2]
[346202746,1734773491358,-500.0,0.00020614,2]
[346202747,1734773491370,-900.0,0.00020614,2]
[346202748,1734773491379,-500.0,0.00020614,2]
[346202749,1734773491391,-150.0,0.00020628,4]
[346202750,1734773491402,-150.0,0.00020635,4]
[346202751,1734773491411,-1000.0,0.00020663,2]
[346202752,1734773491421,-200.0,0.00020708,2]
[346202753,1734773491431,-673.56,0.00020709,2]
[346202754,1734773491440,-150.0,0.00020718,4]
[346202755,1734773491450,-436.21,0.00020766,2]
[346202756,1734773491459,-436.21,0.00020766,2]
[346202757,1734773491468,-436.21,0.00020766,2]
[346202758,1734773491477,-422.95,0.00020766,2]
[346202759,1734773491487,-365.07,0.00020766,2]
[346202760,1734773491495,-976.98,0.00020766,2]
[346202761,1734773491504,-365.07,0.00020766,2]
[346202762,1734773491515,-976.98,0.00020766,2]
[346202763,1734773491525,-729.09,0.00020766,2]
[346202764,1734773491537,-974.97,0.00020766,2]
[346202765,1734773491546,-150.0,0.00020781,4]
[346202766,1734773491555,-153.0,0.00020796,2]
[346202767,1734773491564,-153.0,0.00020796,2]
[346202768,1734773491574,-153.0,0.00020796,2]
[346202769,1734773491583,-153.0,0.00020796,2]
[346202770,1734773491592,-153.0,0.00020796,2]
[346202771,1734773491602,-153.0,0.00020796,2]
[346202772,1734773491611,-153.0,0.00020796,2]
[346202773,1734773491622,-153.0,0.00020796,2]
[346202774,1734773491631,-153.0,0.00020796,2]
[346202775,1734773491639,-153.0,0.00020796,2]
[346202776,1734773491648,-153.0,0.00020796,2]
[346202777,1734773491657,-153.0,0.00020796,2]
[346202778,1734773491668,-153.0,0.00020796,2]
[346202779,1734773491680,-153.0,0.00020796,2]
[346202780,1734773491691,-153.0,0.00020796,2]
[346202781,1734773491700,-150.0,0.00020802,4]
[346202782,1734773491710,-666.0,0.0002082,2]
[346202783,1734773491720,-500.0,0.00020821,2]
[346202784,1734773491731,-500.0,0.00020821,2]
[346202785,1734773491740,-515.37,0.00020821,2]
[346202786,1734773491750,-576.30847385,0.00020821,2]
[346202787,1734773491759,-500.0,0.00020821,2]
[346202788,1734773491768,-500.0,0.00020821,2]
[346202789,1734773491777,-500.0,0.00020821,2]
[346202790,1734773491788,-500.0,0.00020821,2]
[346202791,1734773491796,-500.0,0.00020821,2]
[346202792,1734773491806,-351.37390813,0.00020821,2]
[346202793,1734773491815,-508.50636603,0.00020821,2]
[346202794,1734773491824,-500.0,0.00020821,2]
[346202795,1734773491833,-500.0,0.00020821,2]
[346202796,1734773491843,-500.0,0.00020821,2]
[346202797,1734773491852,-500.0,0.00020821,2]
[346202798,1734773491861,-500.0,0.00020821,2]
[346202799,1734773491870,-500.0,0.00020821,2]
[346202800,1734773491879,-500.0,0.00020821,2]
[346202801,1734773491888,-500.0,0.00020821,2]
[346202802,1734773491897,-500.0,0.00020821,2]
[346202803,1734773491907,-500.0,0.00020821,2]
[346202804,1734773491916,-500.0,0.00020821,2]
[346202805,1734773491926,-500.0,0.00020821,2]
[346202806,1734773491934,-500.0,0.00020821,2]
[346202807,1734773491943,-500.0,0.00020821,2]
[346202808,1734773491952,-168.86975316,0.00020821,2]
[346202809,1734773491961,-500.0,0.00020821,2]
[346202810,1734773491971,-500.0,0.00020821,2]
[346202811,1734773491980,-525.22,0.00020821,2]
[346202812,1734773491989,-500.0,0.00020821,2]
[346202813,1734773491998,-500.0,0.00020821,2]
[346202814,1734773492008,-516.96420981,0.00020821,2]
[346202815,1734773492017,-500.0,0.00020821,2]
[346202816,1734773492027,-500.0,0.00020821,2]
[346202817,1734773492039,-500.0,0.00020821,2]
[346202818,1734773492048,-359.74777707,0.00020821,2]
[346202819,1734773492057,-500.0,0.00020821,2]
[346202820,1734773492066,-500.0,0.00020821,2]
[346202821,1734773492075,-500.0,0.00020821,2]
[346202822,1734773492085,-500.0,0.00020821,2]
[346202823,1734773492094,-500.0,0.00020821,2]
[346202824,1734773492103,-500.0,0.00020821,2]
[346202825,1734773492282,-555.37,0.00020821,2]
[346202826,1734773492291,-500.0,0.00020821,2]
[346202827,1734773492300,-500.0,0.00020821,2]
[346202828,1734773492310,-563.80009621,0.00020821,2]
[346202829,1734773492320,-500.0,0.00020821,2]
[346202830,1734773492330,-500.0,0.00020821,2]
[346202831,1734773492339,-500.0,0.00020821,2]
[346202832,1734773492348,-500.0,0.00020821,2]
[346202833,1734773492358,-500.0,0.00020821,2]
[346202834,1734773492368,-500.0,0.00020821,2]
[346202835,1734773492380,-500.0,0.00020821,2]
[346202836,1734773492389,-500.0,0.00020821,2]
[346202837,1734773492399,-500.0,0.00020821,2]
[346202838,1734773492408,-500.0,0.00020821,2]
[346202839,1734773492417,-500.0,0.00020821,2]
[346202840,1734773492426,-500.0,0.00020821,2]
[346202841,1734773492436,-500.0,0.00020821,2]
[346202842,1734773492445,-650.53,0.00020821,2]
[346202843,1734773492455,-601.3,0.00020821,2]
[346202844,1734773492464,-1245.48,0.00020821,2]
[346202845,1734773492474,-500.0,0.00020821,2]
[346202846,1734773492483,-500.0,0.00020821,2]
[346202847,1734773492491,-586.91,0.00020821,2]
[346202848,1734773492501,-584.9,0.00020821,2]
[346202849,1734773492510,-500.0,0.00020821,2]
[346202850,1734773492519,-402.08372623,0.00020821,2]
[346202851,1734773492528,-601.62,0.00020821,2]
[346202852,1734773492538,-500.0,0.00020821,2]
[346202853,1734773492547,-912.12,0.00020821,2]